Cogmind - Beta 12 @@@ ROGUE MODE // 2023.04.23 @ 10:07:25 Player: kasaphescent Result: Destroyed by NK-0LA with NK-0LA's Tesla Doomcannon Performance ------------- Evolutions (1) 500 Regions Visited (6) 1200 Robots Destroyed (36) 180 Value Destroyed (743) 743 Prototype IDs (26) 520 Alien Tech Used (0) 0 Bonus (339) 339 TOTAL SCORE: 3482 Bonus ------- Follower Combat Kills 39 Aligned with FarCom 300 Cogmind --------- Core Integrity 0/400 Matter 180/300 Energy 72/100 System Corruption 11% Temperature Cool (7) Movement Treading (240) Ox1 Location -8/Mines Parts ------- > --- POWER (1) -------- (None) > --- PROPULSION (2) --- Light Treads > --- UTILITY (4) ------ Cooling System Large Storage Unit > --- WEAPON (2) ------- Advanced Beam Cannon Improved Light Cannon > --- INVENTORY (15) --- Armored Wheel Flying Fortress v7 Experimental Sensor Array Advanced Beam Cannon Advanced Beam Cannon Mini Grenade Launcher Mini Grenade Launcher Peak State ------------ > --- POWER ------------ Light Ion Engine > --- PROPULSION ------- Light Treads Armored Wheel > --- UTILITY ---------- Cooling System Large Storage Unit Seismic Detector Hardened Light Armor Plating > --- WEAPON ----------- Advanced Beam Cannon Improved Light Cannon > --- INVENTORY -------- Improved Ion Engine Reinforced Deuterium Engine Light Fission Core Light Treads Light Treads Flying Fortress v7 Experimental Sensor Array Advanced Beam Cannon Advanced Beam Cannon Improved Light Cannon Mini Grenade Launcher Mini Grenade Launcher [Rating: 21] Favorites ----------- Power Light Ion Engine Engine Light Ion Engine Propulsion Light Treads Treads Light Treads Leg Aluminum Leg Wheel Armored Wheel Utility Large Storage Unit Device Seismic Detector Storage Large Storage Unit Protection Hardened Light Armor Plating Weapon Advanced Beam Cannon Energy Gun EM Pulse Gun Energy Cannon Advanced Beam Cannon Ballistic Gun Light Assault Rifle Ballistic Cannon Improved Light Cannon Launcher Mini Grenade Launcher Slashing Weapon Mining Claw Build | -11 -10 -10 -9 -9 -9 -8 ------- Run | Jun Mat Min Mat Min Exi Min Slots Evolved 2 | . . . 2 . . . Power . | . . . . . . . Propulsion . | . . . . . . . Utility 2 | . . . 2 . . . Weapon . | . . . . . . . Parts Attached 41 | 6 3 1 18 8 . 5 Power 4 | 1 . . 2 . . 1 Engine 4 | 1 . . 2 . . 1 Core . | . . . . . . . Reactor . | . . . . . . . Propulsion 11 | 2 . . 5 2 . 2 Treads 4 | . . . 2 . . 2 Leg 3 | 2 . . 1 . . . Wheel 4 | . . . 2 2 . . Hover . | . . . . . . . Flight . | . . . . . . . Utility 10 | 1 3 . 5 1 . . Device 5 | . 1 . 4 . . . Storage 3 | 1 1 . 1 . . . Processor . | . . . . . . . Hackware . | . . . . . . . Protection 2 | . 1 . . 1 . . Artifact . | . . . . . . . Weapon 16 | 2 . 1 6 5 . 2 Energy Gun 4 | 1 . 1 2 . . . Energy Cannon 6 | . . . 3 2 . 1 Ballistic Gun 1 | 1 . . . . . . Ballistic Cannon 2 | . . . . 1 . 1 Launcher 2 | . . . . 2 . . Special Weapon . | . . . . . . . Impact Weapon . | . . . . . . . Slashing Weapon 1 | . . . 1 . . . Piercing Weapon . | . . . . . . . Special Melee Weapon . | . . . . . . . Unidentified Prototypes 1 | . . . 1 . . . Parts Lost 14 | . . . 5 2 . 7 Power 3 | . . . 1 . . 2 Propulsion 5 | . . . 2 1 . 2 Utility 2 | . . . . . . 2 Weapon 4 | . . . 2 1 . 1 Highest Loss Streak 6 | . . . 3 2 . 6 To Critical Strikes . | . . . . . . . Average Slot Usage (%) 96 | . 96 99 93 98 100 94 Engine 11 | . 14 14 11 11 11 7 Treads 8 | . . . 8 11 11 13 Leg 7 | . 28 28 5 . . . Wheel 7 | . . . 7 10 11 8 Device 20 | . 1 14 26 23 22 22 Storage 11 | . 14 14 11 11 11 11 Protection 5 | . 8 . . 9 11 10 Energy Gun 5 | . 14 13 7 . . . Energy Cannon 8 | . . . 9 11 11 10 Ballistic Gun 4 | . 14 14 3 . . . Ballistic Cannon 3 | . . . . 6 11 11 Naked Turns . | . . . . . . . Heaviest Build 39 | 11 27 27 34 39 39 39 Greatest Support 20 | 20 20 20 20 12 12 12 Greatest Overweight (x) 3 | 2 1 1 3 3 3 3 Average Overweight (x) 2 | . . 1 2 2 3 2 Largest Inventory Capacity 15 | 8 15 15 15 15 15 15 Average Capacity 14 | 7 14 15 15 15 15 15 Most Carried 15 | 6 13 14 15 15 15 15 Average Carried 13 | 2 8 13 14 13 14 13 Final Capacity 15 | 8 15 15 15 15 15 15 Final Carried 15 | 6 13 13 15 14 15 10 Class Distribution -------------------- 100% | Mutant Dominant Class ---------------- Mutant | -10/Materials Mutant | -10/Mines Mutant | -9/Materials Mutant | -9/Mines Mutant | -9/Exiles Mutant | -8/Mines Resources | -11 -10 -10 -9 -9 -9 -8 ----------- Run | Jun Mat Min Mat Min Exi Min Matter Collected 675 | 247 48 16 196 168 . . Remotely . | . . . . . . . Salvage Created 1081 | . 60 56 781 184 . . Parts 81 | . 7 6 57 11 . . Haulers Intercepted 3 | . . . 3 . . . Recyclers Shooed . | . . . . . . . Parts Field Recycled . | . . . . . . . Retrieved Matter . | . . . . . . . Parts Self-Destructed . | . . . . . . . Prevented . | . . . . . . . Kills | -11 -10 -10 -9 -9 -9 -8 ------- Run | Jun Mat Min Mat Min Exi Min Combat Hostiles Destroyed 34 | . 3 3 18 10 . . Guns 17 | . 3 3 11 . . . Cannons 9 | . . . 6 3 . . AOE 7 | . . . 1 6 . . Classes Destroyed 10 | . 2 . 5 3 . . Worker 1 | . . . 1 . . . Hauler 3 | . . . 3 . . . Recycler 1 | . . . . 1 . . Operator 1 | . 1 . . . . . Swarmer 16 | . 3 3 7 3 . . Grunt 9 | . . . 7 2 . . Brawler 1 | . . . . 1 . . Duelist 1 | . . . 1 . . . Sentry 3 | . . . 3 . . . Assembled 4 | . . . . 4 . . Best Kill Streak 7 | . 3 2 7 3 . . Combat Bots Only 7 | . 3 2 7 3 . . Max Kills in Single Turn 2 | . 1 1 2 2 . . Gunslinging 1 | . . . 1 . . . Exploded 1 | . . . 1 1 . . Melee . | . . . . . . . Uniques/NPCs Destroyed . | . . . . . . . Combat | -11 -10 -10 -9 -9 -9 -8 -------- Run | Jun Mat Min Mat Min Exi Min Damage Taken 2406 | . 117 85 849 259 12 1084 Core 428 | . 17 6 206 25 . 174 Absorbed by Shields . | . . . . . . . Redirected to Shielding 10 | . 10 . . . . . Core Remaining (%) 95 | 100 . 90 . . . . Volleys Fired 107 | . 16 7 51 21 1 11 Largest 2 | . 2 2 2 2 2 2 Hottest 128 | . 60 60 128 128 107 107 Shots Fired 201 | . 32 14 101 36 2 16 Gun 119 | . 32 14 73 . . . Cannon 77 | . . . 28 31 2 16 Launcher 5 | . . . . 5 . . Special . | . . . . . . . Kinetic 75 | . 16 7 34 7 1 10 Thermal 72 | . . . 41 24 1 6 Explosive 5 | . . . . 5 . . Electromagnetic 49 | . 16 7 26 . . . Robot Hit Streak 16 | . 5 4 16 10 . 5 Robot Miss Streak 5 | . 5 4 5 1 . 2 Penetration Max . | . . . . . . . Secondary Targets 4 | . . . 4 . . . Max Gunslinging Chain 1 | . . . 1 . . . Shots Hit Robots 123 | . 13 6 73 21 . 10 Core Hits 47 | . 5 3 29 9 . 1 Critical Kills 1 | . . . . 1 . . Critical Parts Destroyed . | . . . . . . . Critical Strikes 4 | . . . 3 1 . . Burn 3 | . . . 3 . . . Meltdown 1 | . . . . 1 . . Melee Attacks 5 | . . . 5 . . . Impact . | . . . . . . . Slashing 5 | . . . 5 . . . Piercing . | . . . . . . . Sneak Attacks 1 | . . . 1 . . . Combat Hostiles . | . . . . . . . Follow-up Attacks . | . . . . . . . Damage Inflicted 2238 | . 140 57 1035 844 . 162 Guns 762 | . 140 57 565 . . . Cannons 910 | . . . 340 408 . 162 Explosions 521 | . . . 85 436 . . Melee 45 | . . . 45 . . . Ramming . | . . . . . . . Kinetic 447 | . 69 26 186 44 . 122 Thermal 1088 | . . . 567 481 . 40 Explosive 319 | . . . . 319 . . Electromagnetic 339 | . 71 31 237 . . . Impact . | . . . . . . . Slashing 45 | . . . 45 . . . Piercing . | . . . . . . . Highest Corruption 11 | . . . . 5 5 11 Average Corruption 5 | . . . . 5 5 6 Corruption Purged . | . . . . . . . Corruption Blocked . | . . . . . . . Effects 26 | . . . . 15 7 4 Message Errors 5 | . . . . 4 1 . Matter Fused 8 | . . . . 4 2 2 Heat Flow Errors 2 | . . . . 2 . . Energy Discharges 4 | . . . . 2 2 . Data Loss (minor) 5 | . . . . 3 1 1 Data Loss (major) 1 | . . . . . 1 . Weapon Failures 1 | . . . . . . 1 Overload Shots . | . . . . . . . Overflow Damage 51 | . . . . 51 . . Projectiles 19 | . . . . 19 . . Explosions 32 | . . . . 32 . . Melee . | . . . . . . . Knockbacks 2 | . . . . 1 . 1 Impact . | . . . . . . . Kinetic 2 | . . . . 1 . 1 Secondary . | . . . . . . . Self-Inflicted Damage 15 | . . . 15 . . . Shots 1 | . . . 1 . . . Rammed . | . . . . . . . Targets Rammed . | . . . . . . . Kicked . | . . . . . . . Crushed . | . . . . . . . Highest Temperature 172 | . 40 40 154 172 . 7 Average Temperature 34 | . 22 22 42 32 . 7 Received Heat Transfer 279 | . . . 267 12 . . Siege Activations . | . . . . . . . Robots Corrupted . | . . . . . . . Combat Hostiles . | . . . . . . . Parts Fried 1 | . . . 1 . . . Impact Corruptions . | . . . . . . . Robots Melted 1 | . . . . 1 . . Combat Hostiles 1 | . . . . 1 . . Parts Melted 5 | . . . 4 1 . . Heat Transferred 2334 | . . . 1395 903 . 36 Parts Sabotaged . | . . . . . . . Parts Stolen . | . . . . . . . Parts Stripped . | . . . . . . . Power Chain Reactions 1 | . . . 1 . . . Missiles Intercepted . | . . . . . . . Alert | -11 -10 -10 -9 -9 -9 -8 ------- Run | Jun Mat Min Mat Min Exi Min Peak Influence 386 | . 128 149 386 300 . . Initial 81 | . . 49 57 81 . . Average 149 | . 78 106 221 149 . . Maximum Alert Level 1 | . . . 1 1 . . Low Security (%) 72 | 100 100 100 37 86 . 100 Level 1 27 | . . . 62 13 . . Level 2 . | . . . . . . . Level 3 . | . . . . . . . Level 4 . | . . . . . . . Level 5 . | . . . . . . . High Security . | . . . . . . . Max Security . | . . . . . . . Squads Dispatched 2 | . . . 2 . . . Investigation 2 | . . . 2 . . . Extermination . | . . . . . . . Reinforcement . | . . . . . . . Assault . | . . . . . . . Garrison . | . . . . . . . Intercept . | . . . . . . . Searches Triggered . | . . . . . . . Construction Impeded . | . . . . . . . Haulers Reinforced . | . . . . . . . Active Scanning Responses . | . . . . . . . Cargo Convoy Interrupts . | . . . . . . . Stealth | -11 -10 -10 -9 -9 -9 -8 --------- Run | Jun Mat Min Mat Min Exi Min Distress Signals 7 | . 2 . 3 2 . . Communications Jammed . | . . . . . . . Distress Signals . | . . . . . . . Times Spotted 48 | . 7 5 20 11 4 1 Peak Tracking Total 9 | . 3 3 7 3 9 1 Tactical Retreats 2 | . 1 1 . . . . Traps | -11 -10 -10 -9 -9 -9 -8 ------- Run | Jun Mat Min Mat Min Exi Min Traps Triggered . | . . . . . . . Indirectly . | . . . . . . . Trap Hack Attempts . | . . . . . . . Triggered . | . . . . . . . Disarmed . | . . . . . . . Reprogrammed . | . . . . . . . Reused . | . . . . . . . Traps Extracted . | . . . . . . . Installed . | . . . . . . . Triggered . | . . . . . . . Exploded 2 | . . . . . . 2 Machines | -11 -10 -10 -9 -9 -9 -8 ---------- Run | Jun Mat Min Mat Min Exi Min Machines Disabled 5 | . . . . 3 2 . Max in Single Turn 2 | . . . . 2 2 . Machines Repaired . | . . . . . . . Machines Sabotaged . | . . . . . . . Overloaded Fab Kills . | . . . . . . . Hacking | -11 -10 -10 -9 -9 -9 -8 --------- Run | Jun Mat Min Mat Min Exi Min Machines Accessed 8 | . 2 . 4 1 1 . Terminals 7 | . 2 . 4 1 . . Fabricators . | . . . . . . . Repair Stations . | . . . . . . . Recycling Units . | . . . . . . . Scanalyzers . | . . . . . . . Garrison Access . | . . . . . . . Total Hacks 18 | . 4 . 11 2 1 . Successful 7 | . 2 . 3 1 1 . Failed 11 | . 2 . 8 1 . . Catastrophic 3 | . . . 2 1 . . Database Lockouts . | . . . . . . . Manual 4 | . 2 . . 1 1 . Terminals 17 | . 4 . 11 2 . . Fabricators . | . . . . . . . Repair Stations . | . . . . . . . Recycling Units . | . . . . . . . Scanalyzers . | . . . . . . . Garrison Access . | . . . . . . . Terminal Hacks 6 | . 1 . 3 1 1 . Robot Analysis 1 | . . . 1 . . . Prototype ID Bank 1 | . . . 1 . . . Branch Access Points 1 | . . . 1 . . . Locate Traps 1 | . 1 . . . . . Zone Layout 1 | . . . . 1 . . EX-Prototype ID Bank 1 | . . . . . 1 . Fabricator Hacks . | . . . . . . . Repair Station Hacks . | . . . . . . . Recycling Unit Hacks . | . . . . . . . Scanalyzer . | . . . . . . . Garrison Access Hacks . | . . . . . . . Unauthorized Hacks 1 | . 1 . . . . . Terminals 1 | . 1 . . . . . Track 1 | . 1 . . . . . Fabricators . | . . . . . . . Repair Stations . | . . . . . . . Recycling Units . | . . . . . . . Scanalyzers . | . . . . . . . Garrison Access . | . . . . . . . Data Cores Recovered 1 | . 1 . . . . . Used . | . . . . . . . Hacking Detections 6 | . 1 . 4 1 . . Full Trace Events 4 | . 1 . 3 . . . Feedback Events . | . . . . . . . Feedback Blocked . | . . . . . . . Robot Schematics Acquired . | . . . . . . . Robots Built . | . . . . . . . Authchips . | . . . . . . . Time . | . . . . . . . Total Robot Build Rating . | . . . . . . . Part Schematics Acquired . | . . . . . . . Parts Built . | . . . . . . . Authchips . | . . . . . . . Time . | . . . . . . . Total Part Build Rating . | . . . . . . . Parts Repaired . | . . . . . . . Time . | . . . . . . . Parts Recycled . | . . . . . . . Recycled Matter . | . . . . . . . Retrieved Matter . | . . . . . . . Retrieved Components . | . . . . . . . Parts Scanalyzed . | . . . . . . . Part Schematics Acquired . | . . . . . . . Parts Damaged . | . . . . . . . Bothacking | -11 -10 -10 -9 -9 -9 -8 ------------ Run | Jun Mat Min Mat Min Exi Min Used RIF Installer . | . . . . . . . Robots Hacked . | . . . . . . . Non-combat . | . . . . . . . Combat . | . . . . . . . Robot Hacks Applied . | . . . . . . . Relay Couplers Released . | . . . . . . . Fabnet Peak Effective % . | . . . . . . . Robots Rewired . | . . . . . . . Allies Hacked . | . . . . . . . Hacks Repelled . | . . . . . . . Allies | -11 -10 -10 -9 -9 -9 -8 -------- Run | Jun Mat Min Mat Min Exi Min Total Allies 1 | . . . . 1 . . Largest Group 1 | . . . . 1 . . Highest-Rated Group 31 | . . . . 31 . . Highest-Rated Ally 31 | . . . . 31 . . Total Orders . | . . . . . . . Ally Attacks 4 | . . . . 4 . . Total Damage 82 | . . . . 82 . . Kills 1 | . . . . 1 . . Allies Corrupted . | . . . . . . . Allies Melted . | . . . . . . . Intel | -11 -10 -10 -9 -9 -9 -8 ------- Run | Jun Mat Min Mat Min Exi Min Robot Analysis Total 1 | . . . 1 . . . Derelict Logs Recovered 2 | . . . . 2 . . Drone Launches . | . . . . . . . Drone Recoveries . | . . . . . . . Exploration | -11 -10 -10 -9 -9 -9 -8 ------------- Run | Jun Mat Min Mat Min Exi Min Turns Passed 2735 | 70 383 156 886 764 351 125 Spaces Moved 1572 | 48 171 69 460 503 252 69 Core 8 | 8 . . . . . . Treads . | . . . . . . . Legs 367 | 40 171 69 87 . . . Wheels 1197 | . . . 373 503 252 69 Hover . | . . . . . . . Flight . | . . . . . . . Fastest Speed 50 | 50 120 190 125 120 135 120 Average Speed 142 | 116 183 190 139 130 135 131 Slowest Speed 260 | 150 190 190 260 135 135 135 Overloaded Moves . | . . . . . . . Propulsion Burnouts . | . . . . . . . Robots Hopped . | . . . . . . . Cave-ins Triggered . | . . . . . . . Exploration Rate (%) 39 | 3 31 21 47 90 60 21 Regions Visited 6 Branch Regions 4 Pre-discovered Areas 1 | . . . . 1 . . Known Exits Taken 1 | . . . 1 . . . Unknown Exits Taken 5 | 1 1 1 . 1 1 . Scrap Searched 1 | . . . . 1 . . Spaces Dug 11 | . . . 1 10 . . Terrain Destroyed 62 | . . . 7 53 . 2 Melee 1 | . . . 1 . . . Projectile 2 | . . . . . . 2 AOE 59 | . . . 6 53 . . Terrain Rammed . | . . . . . . . Walls Destroyed . | . . . . . . . Machines Disabled . | . . . . . . . Actions | -11 -10 -10 -9 -9 -9 -8 --------- Run | Jun Mat Min Mat Min Exi Min Total 1884 | 59 213 82 605 573 264 88 Wait 94 | . 13 5 38 37 . 1 Move 1566 | 47 170 68 459 502 251 69 Hop . | . . . . . . . Pick Up 36 | 6 7 . 16 2 5 . Fast Attach 14 | 6 3 . 4 1 . . Attach 11 | . . 1 5 2 . 3 Detach 4 | . 2 1 1 . . . Swap 16 | . . . 9 5 . 2 Drop 31 | . 2 . 17 3 7 2 Fire 107 | . 16 7 51 21 1 11 Melee 5 | . . . 5 . . . Ram . | . . . . . . . Kick . | . . . . . . . Crush . | . . . . . . . Escape Stasis . | . . . . . . . Rewire . | . . . . . . . Trap . | . . . . . . . Miscellaneous . | . . . . . . . Route ------- -11/Junkyard -10/Materials -10/Mines -9/Materials (discovered 4 exits: [*Mat] / *Min / *Sto x2) -9/Mines (discovered 3 exits: [*Mat x2] / *Exi) -9/Exiles -8/Mines History --------- Turn | Location | Event 40 | -11/Junkyard | Discovered new exit (range 14) 71 | -11/Junkyard | Entered Materials 305 | -10/Materials | Build established: Mutant 416 | -10/Materials | Discovered new exit (range 7) 454 | -10/Materials | Entered Mines 585 | -10/Mines | Discovered new exit (range 14) 610 | -10/Mines | Entered Materials 610 | -9/Materials | Evolved 2 slots: Utility x2 837 | -9/Materials | Destroyed 7 combat bots 879 | -9/Materials | Lost 3 parts (1p1n1w) 884 | -9/Materials | Discovered new exit (range 5) 1248 | -9/Materials | Discovered new exit (range 15) 1276 | -9/Materials | Identified exit to Mines 1276 | -9/Materials | Identified exit to Storage 1283 | -9/Materials | Core integrity fell below 50% 1496 | -9/Materials | Entered Mines 1567 | -9/Mines | Learned Materials emergency access door positions 1568 | -9/Mines | Assembled infested the area 1573 | -9/Mines | Assisted by a Guerilla fighting off Assembled 1735 | -9/Mines | Discovered new exit (range 16) 1944 | -9/Mines | Received a Mining Laser from a helpful Derelict 2043 | -9/Mines | Found a damaged Exp. Sensor Array with a note attached 2046 | -9/Mines | Found Prototype Device 2097 | -9/Mines | Discovered new exit (range 4) 2254 | -9/Mines | Deemed a non-threat by the Exiles lab entrance 2255 | -9/Mines | Discovered new exit (range 5) 2260 | -9/Mines | Entered Exiles 2297 | -9/Exiles | Met 8R-AWN 2320 | -9/Exiles | Met EX-HEX 2356 | -9/Exiles | Met EX-BIN 2375 | -9/Exiles | Aligned with FarCom system 2376 | -9/Exiles | Given EX-Vault access code 2410 | -9/Exiles | Opened EX-Vault 2423 | -9/Exiles | Found Flying Fortress v7 2462 | -9/Exiles | Warned to stay clear of 0b10 Research branches 2501 | -9/Exiles | Met EX-DEC 2570 | -9/Exiles | Attacked by the Exiles 2600 | -9/Exiles | Discovered new exit (range 10) 2611 | -9/Exiles | Left Exiles lab with Flying Fortress v7 2611 | -9/Exiles | Entered Mines 2662 | -8/Mines | NK-0LA came to Exiles' defense 2723 | -8/Mines | System corruption reached 10% 2725 | -8/Mines | Core integrity fell below 20% 2736 | -8/Mines | Destroyed by NK-0LA with NK-0LA's Tesla Doomcannon Last Messages --------------- 02662_ K-01 Serf destroyed. 02666_ K-01 Serf collects debris. 02674_ K-01 Serf destroyed. 02680_ Lgt. Ion Engine destroyed. 02695_ Dropped Rigged Rnf. Deuterium Engine. 02698_ Dropped Rigged Lgt. Fission Core. 02702_ Rigged Rnf. Deuterium Engine explodes. 02702_ Core Extractor disabled. 02704_ Rigged Lgt. Fission Core explodes. 02711_ System corrupted: Component data lost. 02713_ Lgt. Treads destroyed. 02717_ System corrupted: Imp. Light Cannon jammed. 02718_ Terminal disabled. 02718_ Imp. Ion Engine destroyed. 02720_ Imp. Light Cannon destroyed. 02720_ Hrd. Light Armor Plating destroyed. 02728_ System corrupted: Matter fused (-8). 02730_ NK-0LA knocked back. 02732_ Seismic Detector destroyed. 02736_ Lgt. Treads destroyed. Map ----- +----------------------------------------------------+ | ?????????????????????# ### ## #?# # | | ??????????############ ## #?## """ # | | ??????????# *%! ##?## ## """ | | ??????????# == ##?## ### """ | | ????????????#######=######## ## ##?# #?# | | ??????????????????# #??????# ### ### #?## | | ??????????????????# #??????# #?# ## #??# ### | | ??????????????????# #??????# #?# #??## ##?? | | ??????????????????# #??????# #?## ### #???# ##??? | | ??????????????????# #??????# #??# ##?# #???# #???? | | ??????????????????# #??????# #??# #??# ???? #???? | | ??????????????????# #??????# #??# #??# ##??? #???? | | ??????????????????# #??????? ???# #??# #???? #???? | | ??????????????????# #??????? ??? ?? #???? ????? | | ??????????????????# #??????? ???###??###???? ????? | | ??????????????????# #??????? ??????????????? ????? | | ??????????????????# #??????? ????????????????????? | | ??????????????????# #??????? ????????????????????? | | ??????????????????# ##?????? ????????????????????? | | ????????????????### # ###????????????????????????? | | ????????????????# ; %;%##??????????????????????? | | ?????????????????#; #??????????????????????? | | ?????????????????#; x% %#??????????????????????? | | ?????????????????#;; % #??????????????????????? | | ???????????????????#; ##?????????????????????? | | ????????????????????#%" @ #?????????????????????? | | ????????????????????########?????????????????????? | | ?????????????????????????????????????????????????? | | ?????????????????????????????????????????????????? | | ?????????????????????????????????????????????????? | | ?????????????????????????????????????????????????? | | ?????????????????????????????????????????????????? | | ?????????????????????????????????????????????????? | | ?????????????????????????????????????????????????? | | ?????????????????????????????????????????????????? | | ?????????????????????????????????????????????????? | | ?????????????????????????????????????????????????? | | ?????????????????????????????????????????????????? | | ?????????????????????????????????????????????????? | | ?????????????????????????????????????????????????? | | ?????????????????????????????????????????????????? | | ?????????????????????????????????????????????????? | | ?????????????????????????????????????????????????? | | ?????????????????????????????????????????????????? | | ?????????????????????????????????????????????????? | | ?????????????????????????????????????????????????? | | ?????????????????????????????????????????????????? | | ?????????????????????????????????????????????????? | | ?????????????????????????????????????????????????? | | ?????????????????????????????????????????????????? | +----------------------------------------------------+ Best States ------------- Heat Dissipation 60 Energy Generation 12 Energy Capacity 265 Matter Stores 300 Matter Capacity 300 Sight Range 16 Terrain Scan Density 10 Armor Coverage 150 Weapon Shielding 33 Evasion (%) 55 Recoil Reduction 2 Item Schematics ----------------- None Robot Schematics ------------------ None Fabricated ------------ Nothing Alien Tech Used ----------------- None Achievements -------------- None Challenges ------------ None Game ------ Seed ShockMinesnifferSystem Manual? 0 Play Time 00:21:23 Cumulative 351.6 hours Start 2023.04.23 @ 09:43:02 End 2023.04.23 @ 10:07:25 Sessions 1 Manual Loads 0 Difficulty Rogue Special Mode None Game No. 245 Rogue 245 Adventurer 0 Explorer 0 Win Type - Total 25 Types 22/0/2/1/0/0/0/0/0 Lore% 71 Gallery% 86 Achievement% 69 Wizard Run 0 Options --------- ASCII 0 Keyboard 1 Movement Numpad Keybinds 0 Fullscreen 2 Font 18/SmallcapsGlow Map View 76x50 Tactical HUD 1 Map Filters NONE Filters NONE Steam 1 RUN: 6fbf0974-1943-4a3a-ab18-53561f552b49